fUSD/lending_fUSD_20241223
["ID","MTS","AMOUNT","RATE_DAILY","PERIOD"]
[346457629,1734983471569,-958.62,0.00014794,2]
[346457630,1734983471578,-500.0,0.00014794,2]
[346457631,1734983471588,-563.5,0.00014794,2]
[346457632,1734983471597,-1353.65,0.00014794,2]
[346457633,1734983471606,-743.02,0.00014794,2]
[346457634,1734983471616,-500.0,0.00014794,2]
[346457635,1734983471625,-2120.2,0.00014794,2]
[346457636,1734983471634,-768.8,0.00014794,2]
[346457637,1734983471644,-999.63,0.00014794,2]
[346457638,1734983471653,-500.0,0.00014794,2]
[346457639,1734983471663,-730.43,0.00014794,2]
[346457640,1734983471672,-1571.45,0.00014794,2]
[346457641,1734983471682,-712.07,0.00014794,2]
[346457642,1734983471691,-500.0,0.00014794,2]
[346457643,1734983471701,-500.0,0.00014794,2]
[346457644,1734983471711,-1386.96,0.00014794,2]
[346457645,1734983471720,-2428.76,0.00014794,2]
[346457646,1734983471728,-500.0,0.00014794,2]
[346457647,1734983471737,-1431.08,0.00014794,2]
[346457648,1734983471747,-500.0,0.00014794,2]
[346457649,1734983471756,-500.0,0.00014794,2]
[346457650,1734983471765,-500.0,0.00014794,2]
[346457651,1734983471776,-500.0,0.00014794,2]
[346457652,1734983471786,-2535.1,0.00014794,2]
[346457653,1734983471795,-590.71,0.00014794,2]
[346457654,1734983471804,-500.0,0.00014794,2]
[346457655,1734983471813,-500.0,0.00014794,2]
[346457656,1734983471822,-500.0,0.00014794,2]
[346457657,1734983471832,-500.0,0.00014794,2]
[346457658,1734983471841,-500.0,0.00014794,2]
[346457659,1734983471850,-500.0,0.00014794,2]
[346457660,1734983471859,-500.0,0.00014794,2]
[346457661,1734983471869,-647.68,0.00014794,2]
[346457662,1734983471878,-2179.1,0.00014794,2]
[346457663,1734983471887,-500.0,0.00014794,2]
[346457664,1734983471897,-1741.94,0.00014794,2]
[346457665,1734983471906,-503.57,0.00014794,2]
[346457666,1734983471915,-533.93,0.00014794,2]
[346457667,1734983471925,-500.0,0.00014794,2]
[346457668,1734983471934,-506.11,0.00014794,2]
[346457669,1734983471943,-2546.21,0.00014794,2]
[346457670,1734983471953,-500.0,0.00014794,2]
[346457671,1734983471962,-500.0,0.00014794,2]
[346457672,1734983471971,-500.0,0.00014794,2]
[346457673,1734983471981,-2384.93,0.00014794,2]
[346457674,1734983471990,-500.0,0.00014794,2]
[346457675,1734983472000,-500.0,0.00014794,2]
[346457676,1734983472010,-1472.51,0.00014794,2]
[346457677,1734983472019,-739.46,0.00014794,2]
[346457678,1734983472032,-2040.74,0.00014794,2]
[346457679,1734983472042,-500.0,0.00014794,2]
[346457680,1734983472052,-500.0,0.00014794,2]
[346457681,1734983472061,-2108.54,0.00014794,2]
[346457682,1734983472071,-500.0,0.00014794,2]
[346457683,1734983472081,-500.0,0.00014794,2]
[346457684,1734983472091,-1103.36,0.00014794,2]
[346457685,1734983472101,-557.54818246,0.00014794,2]
[346457686,1734983472110,-500.0,0.00014794,2]
[346457687,1734983472120,-603.59,0.00014794,2]
[346457688,1734983472130,-1314.39,0.00014794,2]
[346457689,1734983472139,-681.79,0.00014794,2]
[346457690,1734983472149,-500.0,0.00014794,2]
[346457691,1734983472159,-1474.25,0.00014794,2]
[346457692,1734983472168,-569.96,0.00014794,2]
[346457693,1734983472177,-500.0,0.00014794,2]
[346457694,1734983472187,-500.0,0.00014794,2]
[346457695,1734983472196,-2526.97,0.00014794,2]
[346457696,1734983472206,-500.0,0.00014794,2]
[346457697,1734983472216,-588.45,0.00014794,2]
[346457698,1734983472226,-562.03,0.00014794,2]
[346457699,1734983472238,-500.0,0.00014794,2]
[346457700,1734983472247,-500.0,0.00014794,2]
[346457701,1734983472256,-2097.31,0.00014794,2]
[346457702,1734983472266,-500.0,0.00014794,2]
[346457703,1734983472279,-2272.82,0.00014794,2]
[346457704,1734983472288,-1399.67,0.00014794,2]
[346457705,1734983472298,-1081.13,0.00014794,2]
[346457706,1734983472310,-500.0,0.00014794,2]
[346457707,1734983472320,-952.35,0.00014794,2]
[346457708,1734983472329,-766.53,0.00014794,2]
[346457709,1734983472339,-500.0,0.00014794,2]
[346457710,1734983472349,-505.91591175,0.00014794,2]
[346457711,1734983472358,-971.56,0.00014794,2]
[346457712,1734983472367,-1033.9,0.00014794,2]
[346457713,1734983472376,-908.96,0.00014794,2]
[346457714,1734983472386,-1920.11,0.00014794,2]
[346457715,1734983472395,-500.0,0.00014794,2]
[346457716,1734983472405,-500.0,0.00014794,2]
[346457717,1734983472415,-500.0,0.00014794,2]
[346457718,1734983472424,-500.0,0.00014794,2]
[346457719,1734983472434,-500.0,0.00014794,2]
[346457720,1734983472443,-507.44119858,0.00014794,2]
[346457721,1734983472452,-1220.95,0.00014794,2]
[346457722,1734983472461,-625.437085,0.00014794,2]
[346457723,1734983472470,-500.0,0.00014794,2]
[346457724,1734983472479,-500.0,0.00014794,2]
[346457725,1734983472489,-549.68,0.00014794,2]
[346457726,1734983472498,-2597.65,0.00014794,2]
[346457727,1734983472508,-500.0,0.00014794,2]
[346457728,1734983472517,-500.0,0.00014794,2]
[346457729,1734983472530,-283.92671316,0.00014794,2]
[346457730,1734983472540,-1679.77,0.00014794,2]
[346457731,1734983472549,-500.0,0.00014794,2]
[346457732,1734983472559,-500.0,0.00014794,2]
[346457733,1734983472568,-500.0,0.00014794,2]
[346457734,1734983472577,-500.0,0.00014794,2]
[346457735,1734983472586,-2479.89,0.00014794,2]
[346457736,1734983472595,-500.0,0.00014794,2]
[346457737,1734983472605,-500.0,0.00014794,2]
[346457738,1734983472614,-500.0,0.00014794,2]
[346457739,1734983472624,-884.3,0.00014794,2]
[346457740,1734983472633,-533.99,0.00014794,2]
[346457741,1734983472642,-1337.77,0.00014794,2]
[346457742,1734983472652,-1234.01,0.00014794,2]
[346457743,1734983472661,-500.0,0.00014794,2]
[346457744,1734983472762,-500.0,0.00014794,2]
[346457745,1734983472773,-1693.27,0.00014794,2]
[346457746,1734983472784,-500.0,0.00014794,2]
[346457747,1734983472793,-1639.66,0.00014794,2]
[346457748,1734983472803,-500.0,0.00014794,2]
[346457749,1734983472812,-1258.33,0.00014794,2]
[346457750,1734983472822,-500.0,0.00014794,2]
[346457751,1734983472831,-865.68,0.00014794,2]
[346457752,1734983472841,-500.0,0.00014794,2]
[346457753,1734983472851,-500.0,0.00014794,2]
[346457754,1734983472860,-1242.29,0.00014794,2]
[346457755,1734983472870,-500.0,0.00014794,2]
[346457756,1734983472879,-558.44,0.00014794,2]
[346457757,1734983472888,-500.0,0.00014794,2]
[346457758,1734983472897,-1883.5,0.00014794,2]
[346457759,1734983472907,-500.0,0.00014794,2]
[346457760,1734983472916,-500.0,0.00014794,2]
[346457761,1734983472926,-500.0,0.00014794,2]
[346457762,1734983472935,-500.0,0.00014794,2]
[346457763,1734983472944,-1457.31,0.00014794,2]
[346457764,1734983472953,-500.0,0.00014794,2]
[346457765,1734983472962,-500.0,0.00014794,2]
[346457766,1734983472970,-500.0,0.00014794,2]
[346457767,1734983472979,-744.66,0.00014794,2]
[346457768,1734983472988,-500.0,0.00014794,2]
[346457769,1734983472997,-614.05,0.00014794,2]
[346457770,1734983473007,-500.0,0.00014794,2]
[346457771,1734983473016,-505.95,0.00014794,2]
[346457772,1734983473027,-500.0,0.00014794,2]
[346457773,1734983473036,-1106.29,0.00014794,2]
[346457774,1734983473045,-825.99,0.00014794,2]
[346457775,1734983473054,-614.73,0.00014794,2]
[346457776,1734983473063,-598.56,0.00014794,2]
[346457777,1734983473072,-2428.41,0.00014794,2]
[346457778,1734983473081,-500.0,0.00014794,2]
[346457779,1734983473090,-647.89,0.00014794,2]
[346457780,1734983473098,-555.89,0.00014794,2]
[346457781,1734983473108,-1850.68,0.00014794,2]
[346457782,1734983473117,-733.51,0.00014794,2]
[346457783,1734983473126,-1395.61,0.00014794,2]
[346457784,1734983473134,-500.0,0.00014794,2]
[346457785,1734983473143,-500.0,0.00014794,2]
[346457786,1734983473152,-500.0,0.00014794,2]
[346457787,1734983473160,-1898.84,0.00014794,2]
[346457788,1734983473169,-1190.22,0.00014794,2]
[346457789,1734983473178,-520.67,0.00014794,2]
[346457790,1734983473187,-659.78,0.00014794,2]
[346457791,1734983473196,-500.0,0.00014794,2]
[346457792,1734983473204,-706.12,0.00014794,2]
[346457793,1734983473214,-514.33974795,0.00014794,2]
[346457794,1734983473227,-1161.74,0.00014794,2]
[346457795,1734983473236,-792.15,0.00014794,2]
[346457796,1734983473245,-500.0,0.00014794,2]
[346457797,1734983473254,-1198.3,0.00014794,2]
[346457798,1734983473264,-1131.14,0.00014794,2]
[346457799,1734983473276,-500.0,0.00014794,2]
[346457800,1734983473285,-500.0,0.00014794,2]
[346457801,1734983473294,-1629.86,0.00014794,2]
[346457802,1734983473304,-500.0,0.00014794,2]
[346457803,1734983473313,-977.33,0.00014794,2]
[346457804,1734983473323,-548.69,0.00014794,2]
[346457805,1734983473332,-500.0,0.00014794,2]
[346457806,1734983473341,-500.0,0.00014794,2]
[346457807,1734983473349,-500.0,0.00014794,2]
[346457808,1734983473359,-628.27,0.00014794,2]
[346457809,1734983473367,-599.12,0.00014794,2]
[346457810,1734983473376,-500.0,0.00014794,2]
[346457811,1734983473385,-500.0,0.00014794,2]
[346457812,1734983473394,-1391.9,0.00014794,2]
[346457813,1734983473403,-2005.44,0.00014794,2]
[346457814,1734983473413,-700.0,0.00014794,2]
[346457815,1734983473422,-541.38378305,0.00014794,2]
[346457816,1734983473430,-500.0,0.00014794,2]
[346457817,1734983473439,-500.0,0.00014794,2]
[346457818,1734983473448,-500.0,0.00014794,2]
[346457819,1734983473456,-1352.65,0.00014794,2]
[346457820,1734983473465,-2203.91,0.00014794,2]
[346457821,1734983473474,-929.9,0.00014794,2]
[346457822,1734983473483,-423.25236724,0.00014794,2]
[346457823,1734983473491,-1256.82,0.00014794,2]
[346457824,1734983473500,-582.13,0.00014794,2]
[346457825,1734983473509,-500.0,0.00014794,2]
[346457826,1734983473519,-500.0,0.00014794,2]
[346457827,1734983473530,-500.0,0.00014794,2]
[346457828,1734983473539,-1626.83,0.00014794,2]
[346457829,1734983473548,-821.99,0.00014794,2]
[346457830,1734983473557,-500.0,0.00014794,2]
[346457831,1734983473566,-500.0,0.00014794,2]
[346457832,1734983473575,-500.0,0.00014794,2]
[346457833,1734983473584,-1342.26,0.00014794,2]
[346457834,1734983473593,-6402.42,0.00014794,2]
[346457835,1734983473602,-926.8,0.00014794,2]
[346457836,1734983473611,-1227.45,0.00014794,2]
[346457837,1734983473620,-500.0,0.00014794,2]
[346457838,1734983473629,-1859.49,0.00014794,2]
[346457839,1734983473638,-500.0,0.00014794,2]
[346457840,1734983473647,-614.72,0.00014794,2]
[346457841,1734983473655,-1326.67,0.00014794,2]
[346457842,1734983473664,-510.11311772,0.00014794,2]
[346457843,1734983473673,-500.0,0.00014794,2]
[346457844,1734983473682,-500.0,0.00014794,2]
[346457845,1734983473691,-500.0,0.00014794,2]
[346457846,1734983473700,-596.52,0.00014794,2]
[346457847,1734983473709,-1015.69,0.00014794,2]
[346457848,1734983473718,-500.0,0.00014794,2]
[346457849,1734983473727,-500.0,0.00014794,2]
[346457850,1734983473736,-1210.05,0.00014794,2]
[346457851,1734983473745,-1848.4,0.00014794,2]
[346457852,1734983473754,-574.22,0.00014794,2]
[346457853,1734983473763,-1285.29,0.00014794,2]
[346457854,1734983473774,-500.0,0.00014794,2]
[346457855,1734983473784,-500.0,0.00014794,2]
[346457856,1734983473793,-500.0,0.00014794,2]
[346457857,1734983473803,-500.0,0.00014794,2]
[346457858,1734983473812,-2751.45,0.00014794,2]
[346457859,1734983473823,-500.0,0.00014794,2]
[346457860,1734983473832,-1128.87,0.00014794,2]
[346457861,1734983473842,-500.0,0.00014794,2]
[346457862,1734983473851,-683.58,0.00014794,2]
[346457863,1734983473860,-6056.43,0.00014794,2]
[346457864,1734983473870,-500.0,0.00014794,2]
[346457865,1734983473879,-1154.43,0.00014794,2]
[346457866,1734983473889,-500.0,0.00014794,2]
[346457867,1734983473898,-500.0,0.00014794,2]
[346457868,1734983473907,-11553.88,0.00014794,2]
[346457869,1734983473916,-3461.58,0.00014794,2]
[346457870,1734983473925,-2563.93,0.00014794,2]
[346457871,1734983473934,-1292.7,0.00014794,2]
[346457872,1734983473943,-500.0,0.00014794,2]
[346457873,1734983473952,-500.0,0.00014794,2]
[346457874,1734983473961,-2781.72,0.00014794,2]
[346457875,1734983473970,-1045.69,0.00014794,2]
[346457876,1734983473979,-500.0,0.00014794,2]
[346457877,1734983473989,-554.57,0.00014794,2]
[346457878,1734983473998,-1274.89,0.00014794,2]
[346457879,1734983474008,-500.0,0.00014794,2]
[346457880,1734983474018,-1146.69,0.00014794,2]
[346457881,1734983474035,-500.0,0.00014794,2]
[346457882,1734983474044,-948.38,0.00014794,2]
[346457883,1734983474053,-500.0,0.00014794,2]
[346457884,1734983474063,-500.0,0.00014794,2]
[346457885,1734983474072,-1729.1,0.00014794,2]
[346457886,1734983474082,-1060.71,0.00014794,2]
[346457887,1734983474091,-15575.1,0.00014794,2]
[346457888,1734983474100,-153.09084268,0.00014794,2]
[346457889,1734983474109,-500.0,0.00014794,2]
[346457890,1734983474118,-1437.23,0.00014794,2]
[346457891,1734983474128,-3891.1,0.00014794,2]
[346457892,1734983474137,-920.78,0.00014794,2]
[346457893,1734983474146,-2142.93,0.00014794,2]
[346457894,1734983474155,-736.03,0.00014794,2]
[346457895,1734983474164,-606.13547418,0.00014794,2]
[346457896,1734983474173,-1226.17,0.00014794,2]
[346457897,1734983474182,-500.0,0.00014794,2]
[346457898,1734983474192,-500.0,0.00014794,2]
[346457899,1734983474201,-1074.33,0.00014794,2]
[346457900,1734983474210,-500.0,0.00014794,2]
[346457901,1734983474219,-6302.87,0.00014794,2]
[346457902,1734983474229,-3579.93,0.00014794,2]
[346457903,1734983474240,-678.95,0.00014794,2]
[346457904,1734983474249,-500.0,0.00014794,2]
[346457905,1734983474258,-1468.11,0.00014794,2]
[346457906,1734983474267,-695.77,0.00014794,2]
[346457907,1734983474279,-7214.02,0.00014794,2]
[346457908,1734983474288,-6586.38,0.00014794,2]
[346457909,1734983474297,-500.0,0.00014794,2]
[346457910,1734983474306,-500.0,0.00014794,2]
[346457911,1734983474317,-500.0,0.00014794,2]
[346457912,1734983474327,-500.0,0.00014794,2]
[346457913,1734983474336,-1410.03,0.00014794,2]
[346457914,1734983474346,-500.0,0.00014794,2]
[346457915,1734983474355,-2688.66,0.00014794,2]
[346457916,1734983474364,-1472.35,0.00014794,2]
[346457917,1734983474374,-500.0,0.00014794,2]
[346457918,1734983474383,-1255.72,0.00014794,2]
[346457919,1734983474393,-1233.64,0.00014794,2]
[346457920,1734983474402,-500.0,0.00014794,2]
[346457921,1734983474411,-701.82,0.00014794,2]
[346457922,1734983474420,-5090.58,0.00014794,2]
[346457923,1734983474430,-500.0,0.00014794,2]
[346457924,1734983474439,-500.0,0.00014794,2]
[346457925,1734983474449,-3635.2,0.00014794,2]
[346457926,1734983474459,-500.0,0.00014794,2]
[346457927,1734983474468,-869.32,0.00014794,2]
[346457928,1734983474478,-1046.58,0.00014794,2]
[346457929,1734983474487,-4671.0,0.00014794,2]
[346457930,1734983474496,-627.84,0.00014794,2]
[346457931,1734983474505,-500.0,0.00014794,2]
[346457932,1734983474514,-4686.61,0.00014794,2]
[346457933,1734983474526,-500.0,0.00014794,2]
[346457934,1734983474536,-630.7,0.00014794,2]
[346457935,1734983474545,-820.95,0.00014794,2]
[346457936,1734983474555,-1836.15,0.00014794,2]
[346457937,1734983474565,-1130.83,0.00014794,2]
[346457938,1734983474574,-2995.53,0.00014794,2]
[346457939,1734983474584,-2323.91,0.00014794,2]
[346457940,1734983474593,-516.26,0.00014794,2]
[346457941,1734983474602,-500.0,0.00014794,2]
[346457942,1734983474611,-1155.82,0.00014794,2]
[346457943,1734983474621,-500.0,0.00014794,2]
[346457944,1734983474630,-1123.17,0.00014794,2]
[346457945,1734983474639,-2403.14,0.00014794,2]
[346457946,1734983474648,-810.25,0.00014794,2]
[346457947,1734983474658,-902.0,0.00014794,2]
[346457948,1734983474667,-1314.92,0.00014794,2]
[346457949,1734983474676,-500.0,0.00014794,2]
[346457950,1734983474685,-500.0,0.00014794,2]
[346457951,1734983474695,-5525.58,0.00014794,2]
[346457952,1734983474704,-512.09,0.00014794,2]
[346457953,1734983474713,-500.0,0.00014794,2]
[346457954,1734983474723,-500.0,0.00014794,2]
[346457955,1734983474732,-666.71,0.00014794,2]
[346457956,1734983474742,-2455.92,0.00014794,2]
[346457957,1734983474751,-872.99,0.00014794,2]
[346457958,1734983474760,-4918.98,0.00014794,2]
[346457959,1734983474770,-500.0,0.00014794,2]
[346457960,1734983474780,-500.0,0.00014794,2]
[346457961,1734983474789,-500.0,0.00014794,2]
[346457962,1734983474798,-4475.48,0.00014794,2]
[346457963,1734983474808,-500.0,0.00014794,2]
[346457964,1734983474817,-579.5,0.00014794,2]
[346457965,1734983474827,-676.19,0.00014794,2]
[346457966,1734983474836,-500.0,0.00014794,2]
[346457967,1734983474845,-553.21,0.00014794,2]
[346457968,1734983474855,-8415.59,0.00014794,2]
[346457969,1734983474864,-792.97,0.00014794,2]
[346457970,1734983474873,-500.0,0.00014794,2]
[346457971,1734983474883,-3919.46,0.00014794,2]
[346457972,1734983474892,-3391.19,0.00014794,2]
[346457973,1734983474901,-636.38,0.00014794,2]
[346457974,1734983474910,-834.47,0.00014794,2]
[346457975,1734983474920,-2742.37,0.00014794,2]
[346457976,1734983474930,-1027.57,0.00014794,2]
[346457977,1734983474939,-181.814851,0.00014794,2]
[346457978,1734983474948,-847.46,0.00014794,2]
[346457979,1734983474957,-9012.3,0.00014794,2]
[346457980,1734983474966,-181.814851,0.00014794,2]
[346457981,1734983474976,-555.96,0.00014794,2]
[346457982,1734983474985,-500.0,0.00014794,2]
[346457983,1734983474993,-500.0,0.00014794,2]
[346457984,1734983475003,-500.0,0.00014794,2]
[346457985,1734983475013,-500.0,0.00014794,2]
[346457986,1734983475022,-5252.8,0.00014794,2]
[346457987,1734983475032,-6315.37,0.00014794,2]
[346457988,1734983475041,-4008.04,0.00014794,2]
[346457989,1734983475050,-7027.53,0.00014794,2]
[346457990,1734983475059,-500.0,0.00014794,2]
[346457991,1734983475069,-500.0,0.00014794,2]
[346457992,1734983475078,-1696.77,0.00014794,2]
[346457993,1734983475087,-500.0,0.00014794,2]
[346457994,1734983475096,-151.0,0.00014794,2]
[346457995,1734983475105,-500.0,0.00014794,2]
[346457996,1734983475114,-500.0,0.00014794,2]
[346457997,1734983475123,-500.0,0.00014794,2]
[346457998,1734983475132,-151.0,0.00014794,2]
[346457999,1734983475141,-500.0,0.00014794,2]
[346458000,1734983475150,-500.0,0.00014794,2]
[346458001,1734983475159,-2000.3,0.00014794,2]
[346458002,1734983475168,-3154.52,0.00014794,2]
[346458003,1734983475177,-5968.56,0.00014794,2]
[346458004,1734983475187,-14873.62,0.00014794,2]
[346458005,1734983475196,-2211.27,0.00014794,2]
[346458006,1734983475205,-500.0,0.00014794,2]
[346458007,1734983475216,-1066.69,0.00014794,2]
[346458008,1734983475228,-500.0,0.00014794,2]
[346458009,1734983475237,-500.0,0.00014794,2]
[346458010,1734983475247,-500.0,0.00014794,2]
[346458011,1734983475255,-500.0,0.00014794,2]
[346458012,1734983475266,-500.0,0.00014794,2]
[346458013,1734983475276,-659.11,0.00014794,2]
[346458014,1734983475285,-151.0,0.00014794,2]
[346458015,1734983475294,-500.0,0.00014794,2]
[346458016,1734983475304,-564.57,0.00014794,2]
[346458017,1734983475313,-3866.62,0.00014794,2]
[346458018,1734983475322,-2330.64,0.00014794,2]
[346458019,1734983475332,-783.78,0.00014794,2]
[346458020,1734983475341,-18570.76,0.00014794,2]
[346458021,1734983475350,-500.0,0.00014794,2]
[346458022,1734983475359,-508.97,0.00014794,2]
[346458023,1734983475369,-829.84,0.00014794,2]
[346458024,1734983475378,-20926.66,0.00014794,2]
[346458025,1734983475388,-500.0,0.00014794,2]
[346458026,1734983475397,-500.0,0.00014794,2]
[346458027,1734983475407,-3757.16,0.00014794,2]
[346458028,1734983475416,-151.0,0.00014794,2]
[346458029,1734983475425,-607.52,0.00014794,2]
[346458030,1734983475435,-7925.4,0.00014794,2]
[346458031,1734983475444,-2302.97,0.00014794,2]
[346458032,1734983475455,-500.0,0.00014794,2]
[346458033,1734983475464,-500.0,0.00014794,2]
[346458034,1734983475473,-500.0,0.00014794,2]
[346458035,1734983475483,-7966.95,0.00014794,2]
[346458036,1734983475492,-1003.84,0.00014794,2]
[346458037,1734983475503,-2515.91,0.00014794,2]
[346458038,1734983475512,-2630.63,0.00014794,2]
[346458039,1734983475523,-698.68,0.00014794,2]
[346458040,1734983475532,-500.0,0.00014794,2]
[346458041,1734983475541,-839.13,0.00014794,2]
[346458042,1734983475550,-9927.13,0.00014794,2]
[346458043,1734983475559,-1217.3,0.00014794,2]
[346458044,1734983475568,-2519.57,0.00014794,2]
[346458045,1734983475578,-1299.48,0.00014794,2]
[346458046,1734983475587,-4244.12,0.00014794,2]
[346458047,1734983475597,-1241.24,0.00014794,2]
[346458048,1734983475606,-500.0,0.00014794,2]
[346458049,1734983475615,-1685.46,0.00014794,2]
[346458050,1734983475624,-151.0,0.00014794,2]
[346458051,1734983475634,-500.0,0.00014794,2]
[346458052,1734983475643,-1846.67,0.00014794,2]
[346458053,1734983475652,-500.0,0.00014794,2]
[346458054,1734983475661,-614.81,0.00014794,2]
[346458055,1734983475670,-151.0,0.00014794,2]
[346458056,1734983475679,-500.0,0.00014794,2]
[346458057,1734983475688,-3928.29,0.00014794,2]
[346458058,1734983475698,-500.0,0.00014794,2]
[346458059,1734983475707,-500.0,0.00014794,2]
[346458060,1734983475716,-4088.25,0.00014794,2]
[346458061,1734983475725,-345.29119465,0.00014794,2]
[346458062,1734983475734,-2122.09,0.00014794,2]
[346458063,1734983475743,-695.21,0.00014794,2]
[346458064,1734983475752,-500.0,0.00014794,2]
[346458065,1734983475762,-3723.91,0.00014794,2]
[346458066,1734983475772,-1404.9,0.00014794,2]
[346458067,1734983475782,-500.0,0.00014794,2]
[346458068,1734983475791,-8672.72,0.00014794,2]
[346458069,1734983475800,-151.0,0.00014794,2]
[346458070,1734983475809,-500.0,0.00014794,2]
[346458071,1734983475818,-500.0,0.00014794,2]
[346458072,1734983475827,-500.0,0.00014794,2]
[346458073,1734983475837,-1063.46,0.00014794,2]
[346458074,1734983475846,-7447.88,0.00014794,2]
[346458075,1734983475855,-26356.9,0.00014794,2]
[346458076,1734983475865,-151.0,0.00014794,2]
[346458077,1734983475874,-8864.44,0.00014794,2]
[346458078,1734983475883,-2573.11,0.00014794,2]
[346458079,1734983475893,-1878.68,0.00014794,2]
[346458080,1734983475902,-3886.04,0.00014794,2]
[346458081,1734983475911,-500.0,0.00014794,2]
[346458082,1734983475920,-5445.13,0.00014794,2]
[346458083,1734983475929,-228.861318,0.00014794,2]
[346458084,1734983475939,-556.76239662,0.00014794,2]
[346458085,1734983475948,-1319.96,0.00014794,2]
[346458086,1734983475958,-500.0,0.00014794,2]
[346458087,1734983475968,-3366.1,0.00014794,2]
[346458088,1734983475977,-500.0,0.00014794,2]
[346458089,1734983475986,-8257.73,0.00014794,2]
[346458090,1734983475995,-1348.11,0.00014794,2]
[346458091,1734983476005,-500.0,0.00014794,2]
[346458092,1734983476015,-1344.55,0.00014794,2]
[346458093,1734983476025,-590.09,0.00014794,2]
[346458094,1734983476035,-1044.67,0.00014794,2]
[346458095,1734983476044,-1845.89,0.00014794,2]
[346458096,1734983476054,-2303.4,0.00014794,2]
[346458097,1734983476063,-500.0,0.00014794,2]
[346458098,1734983476072,-3629.68,0.00014794,2]
[346458099,1734983476082,-646.74,0.00014794,2]
[346458100,1734983476091,-1782.54,0.00014794,2]
[346458101,1734983476100,-1508.2,0.00014794,2]
[346458102,1734983476109,-3087.07,0.00014794,2]
[346458103,1734983476119,-500.0,0.00014794,2]
[346458104,1734983476128,-1473.1,0.00014794,2]
[346458105,1734983476138,-2479.51,0.00014794,2]
[346458106,1734983476147,-4816.5,0.00014794,2]
[346458107,1734983476157,-519.96,0.00014794,2]
[346458108,1734983476167,-594.99,0.00014794,2]
[346458109,1734983476176,-1302.53,0.00014794,2]
[346458110,1734983476185,-614.37,0.00014794,2]
[346458111,1734983476195,-2115.39,0.00014794,2]
[346458112,1734983476204,-1084.22,0.00014794,2]
[346458113,1734983476214,-4086.58,0.00014794,2]
[346458114,1734983476227,-500.0,0.00014794,2]
[346458115,1734983476237,-151.0,0.00014794,2]
[346458116,1734983476246,-1886.31,0.00014794,2]
[346458117,1734983476256,-414.54200011,0.00014802,2]
[346458118,1734983476266,-1376.52,0.00014852,2]
[346458119,1734983476279,-562.42,0.0001493,2]
[346458120,1734983476291,-500.0,0.00014962,2]
[346458121,1734983476304,-509.36867983,0.00014962,2]
[346458122,1734983476314,-164.09,0.00014994,2]
[346458123,1734983476323,-500.0,0.00015,2]
[346458124,1734983476332,-1000.0,0.00015026,2]
[346458125,1734983476342,-562.42,0.00015067,2]
[346458126,1734983476351,-3858.37,0.00015067,2]
[346458127,1734983476360,-4101.31,0.00015067,2]
[346458128,1734983476369,-7168.53,0.00015067,2]